Workbook

Sheet TDSheet
D1: Прайс-лист 2018 / 2019
D2: действителен с 01.12.2018
A3: Для рассчета цены в рублях после двойного клика введите в ячейку курс ЦБ РФ Рубль/Евро на интересующую Вас дату:
A6: >>>>>>>>>> | B6: 75.6217 | F6: <<<<<<<<<<
A8: Оплата товара производится в рублях по курсу ЦБ РФ + 2%
A10: Артикулы, не указанные в прайс-листе, следует запрашивать отдельно
A11: Артикульный номер | B11: Описание | C11: Ед. | D11: Рекомендуемая розничная цена за Ед.
D12: в Евро без НДС | E12: НДС | F12: в Евро с НДС | G12: в Рублях с НДС
A13: 100-0051-04 | B13: Кабель-мультикор микрофонный SC-PLANET FMC04, конструкция: 4 х 2 х 0,19 мм², оболочка: S-PVC 8,0 мм, цвет: черный | C13: м | D13: 3.8 | E13: 0.18 | F13: 4.48 | G13: =ROUND(F13*$B$6*(1+0.02),2) -> 345.56
A14: 100-0051-12+2 | B14: Кабель-мультикор микрофонный SC-PLANET FMC12+2, конструкция: 14 х 2 х 0,19 мм², оболочка: S-PVC 12,4 мм, цвет: черный | C14: м | D14: 10.98 | E14: 0.18 | F14: 12.96 | G14: =ROUND(F14*$B$6*(1+0.02),2) -> 999.66
A15: 100-0051-48+2 | B15: Кабель-мультикор микрофонный SC-PLANET FMC48+2, конструкция: 50 x 2 х 0,19 мм², оболочка: S-PVC 23,7 мм, цвет: черный | C15: м | D15: 36.78 | E15: 0.18 | F15: 43.39 | G15: 3346.85
A16: 100-0101-02 | B16: Кабель-мультикор микрофонный SC-MISTRAL MCF02 AES/EBU 110 Ом, конструкция: 2 х 2 х 0,22 мм², оболочка: S-PVC 9,0 мм, цвет: черный | C16: м | D16: 3.76 | E16: 0.18 | F16: 4.43 | G16: 341.7
A17: 100-0101-04 | B17: Кабель-мультикор микрофонный SC-MISTRAL MCF04 AES/EBU 110 Ом, конструкция: 4 х 2 х 0,22 мм², оболочка: S-PVC 11,0 мм, цвет: черный | C17: м | D17: 5.33 | E17: 0.18 | F17: 6.28 | G17: 484.4
A18: 100-0101-04F | B18: Кабель-мультикор микрофонный SC-MISTRAL MCF04 FRNC негорючий AES/EBU 110 Ом, конструкция: 4 х 2 х 0,22 мм², оболочка: FRNC 11,0 мм, цвет: черный | C18: м | D18: 6.67 | E18: 0.18 | F18: 7.87 | G18: 607.05
A19: 100-0101-08 | B19: Кабель-мультикор микрофонный SC-MISTRAL MCF08 AES/EBU 110 Ом, конструкция: 8 x 2 х 0,22 мм², оболочка: S-PVC 14,8 мм, цвет: черный | C19: м | D19: 10.46 | E19: 0.18 | F19: 12.35 | G19: 952.61
A20: 100-0101-08F | B20: Кабель-мультикор микрофонный SC-MISTRAL MCF08 FRNC негорючий AES/EBU 110 Ом, конструкция: 8 x 2 х 0,22 мм², оболочка: FRNC 15,0 мм, цвет: черный | C20: м | D20: 11.3 | E20: 0.18 | F20: 13.35 | G20: 1029.74
A21: 100-0101-12 | B21: Кабель-мультикор микрофонный SC-MISTRAL MCF12 AES/EBU 110 Ом, конструкция: 12 x 2 х 0,22 мм², оболочка: S-PVC 17,6 мм, цвет: черный | C21: м | D21: 13.63 | E21: 0.18 | F21: 16.09 | G21: 1241.09
A22: 100-0101-12F | B22: Кабель-мультикор микрофонный SC-MISTRAL MCF12 FRNC негорючий AES/EBU 110 Ом, конструкция: 12 x 2 х 0,22 мм², оболочка: FRNC 16,9 мм, цвет: черный | C22: м | D22: 15.93 | E22: 0.18 | F22: 18.78 | G22: 1448.58
A23: 100-0101-16 | B23: Кабель-мультикор микрофонный SC-MISTRAL MCF16 AES/EBU 110 Ом, конструкция: 16 x 2 х 0,22 мм², оболочка: S-PVC 19,4 мм, цвет: черный | C23: м | D23: 17.93 | E23: 0.18 | F23: 21.15 | G23: 1631.39
A24: 100-0101-24 | B24: Кабель-мультикор микрофонный SC-MISTRAL MCF24 AES/EBU 110 Ом, конструкция: 24 x 2 х 0,22 мм², оболочка: S-PVC 24,5 мм, цвет: черный | C24: м | D24: 26.83 | E24: 0.18 | F24: 31.65 | G24: 2441.3
A25: 100-0101-32 | B25: Кабель-мультикор микрофонный SC-MISTRAL MCF32 AES/EBU 110 Ом, конструкция: 32 х 2 х 0,22 мм², оболочка: S-PVC 26,8 мм, цвет: черный | C25: м | D25: 35.22 | E25: 0.18 | F25: 41.54 | G25: 3204.15
A26: 100-0302-02 | B26: Кабель цифровой многоканальный / модуляционный SC-MATRIX MMC02 негорючий, AES/EBU 110 Ом, конструкция: 2 х 2 х 0,25 мм², оболочка: FRNC 10,0 мм, цвет: синий | C26: м | D26: 6.2 | E26: 0.18 | F26: 7.33 | G26: 565.39
A27: 100-0302-04 | B27: Кабель цифровой многоканальный / модуляционный SC-MATRIX MMC04 негорючий, AES/EBU 110 Ом, конструкция: 4 х 2 х 0,25 мм², оболочка: FRNC 11,9 мм, цвет: синий | C27: м | D27: 9.76 | E27: 0.18 | F27: 11.52 | G27: 888.59
A28: 100-0302-08 | B28: Кабель цифровой многоканальный / модуляционный SC-MATRIX MMC08 негорючий, AES/EBU 110 Ом, конструкция: 8 x 2 х 0,25 мм², оболочка: FRNC 15,5 мм, цвет: синий | C28: м | D28: 16.59 | E28: 0.18 | F28: 19.57 | G28: 1509.52
A29: 100-0302-12 | B29: Кабель цифровой многоканальный / модуляционный SC-MATRIX MMC12 негорючий, AES/EBU 110 Ом, конструкция: 12 x 2 х 0,25 мм², оболочка: FRNC 19,9 мм, цвет: синий | C29: м | D29: 26.61 | E29: 0.18 | F29: 31.41 | G29: 2422.78
A30: 100-0302-16 | B30: Кабель цифровой многоканальный / модуляционный SC-MATRIX MMC16 негорючий, AES/EBU 110 Ом, конструкция: 16 x 2 х 0,25 мм², оболочка: FRNC 21,5 мм, цвет: синий | C30: м | D30: 31.11 | E30: 0.18 | F30: 36.72 | G30: 2832.37
A31: 100-0351-10 | B31: Кабель-мультикор микрофонный SC-AURA DMCK10, конструкция: 10 х 2 х 0,15 мм², оболочка: PVC 14,4 мм, цвет: черный | C31: м | D31: 17.89 | E31: 0.18 | F31: 21.13 | G31: 1629.84
A32: 100-0351-10F | B32: Кабель-мультикор микрофонный SC-AURA DMCK10 FRNC негорючий, конструкция: 10 х 2 х 0,15 мм², оболочка: SOFT PUR FRNC 12,0 мм, цвет: черный | C32: м | D32: 19.11 | E32: 0.18 | F32: 22.54 | G32: 1738.6
A33: 100-0401-08 | B33: Кабель-мультикор микрофонный SC-TRANSFER HIGHFLEX AMCK08, конструкция: 8 x 2 х 0,14 мм², оболочка: PUR 9,9 мм, цвет: черный | C33: м | D33: 13.61 | E33: 0.18 | F33: 16.04 | G33: 1237.23
A34: 100-0401-12 | B34: Кабель-мультикор микрофонный SC-TRANSFER HIGHFLEX AMCK12, конструкция: 12 x 2 х 0,14 мм², оболочка: PUR 11,5 мм, цвет: черный | C34: м | D34: 19.02 | E34: 0.18 | F34: 22.43 | G34: 1730.12
A35: 100-0401-16 | B35: Кабель-мультикор микрофонный SC-TRANSFER HIGHFLEX AMCK16, конструкция: 16 x 2 х 0,14 мм², оболочка: PUR 14,5 мм, цвет: черный | C35: м | D35: 21.96 | E35: 0.18 | F35: 25.89 | G35: 1997
A36: 100-0401-32 | B36: Кабель-мультикор микрофонный SC-TRANSFER HIGHFLEX AMCK32, конструкция: 32 х 2 х 0,14 мм², оболочка: PUR 18,6 мм, цвет: черный | C36: м | D36: 39.3 | E36: 0.18 | F36: 46.37 | G36: 3576.71
A37: 100-0401-48 | B37: Кабель-мультикор микрофонный SC-TRANSFER HIGHFLEX AMCK48, конструкция: 48 х 2 х 0,14 мм², оболочка: PUR 21,8 мм, цвет: черный | C37: м | D37: 57.65 | E37: 0.18 | F37: 68.02 | G37: 5246.66
A38: 100-0451-02 | B38: Кабель-мультикор микрофонный SC-QUANTUM HIGHFLEX QMC02 AES/EBU 110 Ом, конструкция: 2 х 2 х 0,14 мм², оболочка: S-PVC 8,5 мм, цвет: черный | C38: м | D38: 3.72 | E38: 0.18 | F38: 4.37 | G38: 337.08
A39: 100-0451-04 | B39: Кабель-мультикор микрофонный SC-QUANTUM HIGHFLEX QMC04 AES/EBU 110 Ом, конструкция: 4 х 2 х 0,14 мм², оболочка: S-PVC 10,2 мм, цвет: черный | C39: м | D39: 5.8 | E39: 0.18 | F39: 6.85 | G39: 528.37
A40: 100-0451-08 | B40: Кабель-мультикор микрофонный SC-QUANTUM HIGHFLEX QMC08 AES/EBU 110 Ом, конструкция: 8 x 2 х 0,14 мм², оболочка: S-PVC 13,8 мм, цвет: черный | C40: м | D40: 10.78 | E40: 0.18 | F40: 12.72 | G40: 981.15
A41: 100-0451-12 | B41: Кабель-мультикор микрофонный SC-QUANTUM HIGHFLEX QMC12 AES/EBU 110 Ом, конструкция: 12 x 2 х 0,14 мм², оболочка: S-PVC 16,0 мм, цвет: черный | C41: м | D41: 16.11 | E41: 0.18 | F41: 19.02 | G41: 1467.09
A42: 100-0451-16 | B42: Кабель-мультикор микрофонный SC-QUANTUM HIGHFLEX QMC16 AES/EBU 110 Ом, конструкция: 16 x 2 х 0,14 мм², оболочка: S-PVC 17,5 мм, цвет: черный | C42: м | D42: 19.78 | E42: 0.18 | F42: 23.35 | G42: 1801.08
A43: 100-0451-20 | B43: Кабель-мультикор микрофонный SC-QUANTUM HIGHFLEX QMC20 AES/EBU 110 Ом, конструкция: 20 х 2 х 0,14 мм², оболочка: S-PVC 19,5 мм, цвет: черный | C43: м | D43: 25.46 | E43: 0.18 | F43: 30.04 | G43: 2317.11
A44: 100-0451-24 | B44: Кабель-мультикор микрофонный SC-QUANTUM HIGHFLEX QMC24 AES/EBU 110 Ом, конструкция: 24 x 2 х 0,14 мм², оболочка: S-PVC 21,5 мм, цвет: черный | C44: м | D44: 29.07 | E44: 0.18 | F44: 34.3 | G44: 2645.7
A45: 100-0451-32 | B45: Кабель-мультикор микрофонный SC-QUANTUM HIGHFLEX QMC32 AES/EBU 110 Ом, конструкция: 32 х 2 х 0,14 мм², оболочка: S-PVC 24,0 мм, цвет: черный | C45: м | D45: 38.5 | E45: 0.18 | F45: 45.43 | G45: 3504.2
A46: 100-0451-48 | B46: Кабель-мультикор микрофонный SC-QUANTUM HIGHFLEX QMC48 AES/EBU 110 Ом, конструкция: 48 х 2 х 0,14 мм², оболочка: S-PVC 29,0 мм, цвет: черный | C46: м | D46: 56.65 | E46: 0.18 | F46: 66.85 | G46: 5156.42
A47: 100-0501-02 | B47: Кабель-мультикор микрофонный SC-PEGASUS CMCK02 AES/EBU 110 Ом, конструкция: 2 х 4 х 0,20 мм², оболочка: S-PVC 13,5 мм, цвет: черный | C47: м | D47: 12.67 | E47: 0.18 | F47: 14.96 | G47: 1153.93
A48: 100-0501-04 | B48: Кабель-мультикор микрофонный SC-PEGASUS CMCK04 AES/EBU 110 Ом, конструкция: 4 х 4 х 0,20 мм², оболочка: S-PVC 15,4 мм, цвет: черный | C48: м | D48: 20.65 | E48: 0.18 | F48: 24.37 | G48: 1879.76
A49: 100-0501-08 | B49: Кабель-мультикор микрофонный SC-PEGASUS CMCK08 AES/EBU 110 Ом, конструкция: 8 x 4 х 0,20 мм², оболочка: S-PVC 21,0 мм, цвет: черный | C49: м | D49: 36.41 | E49: 0.18 | F49: 42.98 | G49: 3315.23
A50: 100-0616-02 | B50: Кабель связи / коммуникационный SC-LOGICABLE LG MOD6LG02 негорючий, конструкция: 2 х 2 х 0,60 мм, оболочка: FRNC 4,9 мм, цвет: серый | C50: м | D50: 0.79 | E50: 0.18 | F50: 0.94 | G50: 72.51
A51: 100-0616-03 | B51: Кабель связи / коммуникационный SC-LOGICABLE LG MOD6LG03 негорючий, конструкция: 3 х 2 х 0,60 мм, оболочка: FRNC 6,2 мм, цвет: серый | C51: м | D51: 1.18 | E51: 0.18 | F51: 1.39 | G51: 107.22
A52: 100-0616-04 | B52: Кабель связи / коммуникационный SC-LOGICABLE LG MOD6LG04 негорючий, конструкция: 4 х 2 х 0,60 мм, оболочка: FRNC 6,6 мм, цвет: серый | C52: м | D52: 1.39 | E52: 0.18 | F52: 1.63 | G52: 125.73
A53: 100-0616-05 | B53: Кабель связи / коммуникационный SC-LOGICABLE LG MOD6LG05 негорючий, конструкция: 5 х 2 х 0,60 мм, оболочка: FRNC 7,1 мм, цвет: серый | C53: м | D53: 1.73 | E53: 0.18 | F53: 2.03 | G53: 156.58
A54: 100-0616-06 | B54: Кабель связи / коммуникационный SC-LOGICABLE LG MOD6LG06 негорючий, конструкция: 6 x 2 х 0,60 мм, оболочка: FRNC 7,6 мм, цвет: серый | C54: м | D54: 1.84 | E54: 0.18 | F54: 2.16 | G54: 166.61
A55: 100-0616-08 | B55: Кабель связи / коммуникационный SC-LOGICABLE LG MOD6LG08 негорючий, конструкция: 8 x 2 х 0,60 мм, оболочка: FRNC 8,1 мм, цвет: серый | C55: м | D55: 2.42 | E55: 0.18 | F55: 2.85 | G55: 219.83
A56: 100-0616-10 | B56: Кабель связи / коммуникационный SC-LOGICABLE LG MOD6LG10 негорючий, конструкция: 10 х 2 х 0,60 мм, оболочка: FRNC 9,3 мм, цвет: серый | C56: м | D56: 2.87 | E56: 0.18 | F56: 3.39 | G56: 261.48
A57: 100-0616-100 | B57: Кабель связи / коммуникационный SC-LOGICABLE LG MOD6LG100 негорючий, конструкция: 10 х 2 х 0,60 мм, оболочка: FRNC 22,1 мм, цвет: серый | C57: м | D57: 24.48 | E57: 0.18 | F57: 28.89 | G57: 2228.41
A58: 100-0616-20 | B58: Кабель связи / коммуникационный SC-LOGICABLE LG MOD6LG20 негорючий, конструкция: 20 х 2 х 0,60 мм, оболочка: FRNC 10,9 мм, цвет: серый | C58: м | D58: 5.48 | E58: 0.18 | F58: 6.48 | G58: 499.83
A59: 100-0616-30 | B59: Кабель связи / коммуникационный SC-LOGICABLE LG MOD6LG30 негорючий, конструкция: 20 х 2 х 0,60 мм, оболочка: FRNC 13,7 мм, цвет: серый | C59: м | D59: 8.11 | E59: 0.18 | F59: 9.58 | G59: 738.95
A60: 100-0616-40 | B60: Кабель связи / коммуникационный SC-LOGICABLE LG MOD6LG40 негорючий, конструкция: 40 х 2 х 0,60 мм, оболочка: FRNC 14,5 мм, цвет: серый | C60: м | D60: 10.44 | E60: 0.18 | F60: 12.32 | G60: 950.29
A61: 100-0616-50 | B61: Кабель связи / коммуникационный SC-LOGICABLE LG MOD6LG50 негорючий, конструкция: 50 x 2 х 0,60 мм, оболочка: FRNC 16,5 мм, цвет: серый | C61: м | D61: 12.53 | E61: 0.18 | F61: 14.79 | G61: 1140.81
A62: 100-0806-02 | B62: Кабель связи / коммуникационный SC-LOGICABLE LG MOD8LG02 негорючий, конструкция: 2 х 2 х 0,80 мм, оболочка: FRNC 6,1 мм, цвет: серый | C62: м | D62: 1.21 | E62: 0.18 | F62: 1.42 | G62: 109.53
A63: 100-0806-03 | B63: Кабель связи / коммуникационный SC-LOGICABLE LG MOD8LG03 негорючий, конструкция: 3 х 2 х 0,80 мм, оболочка: FRNC 8,0 мм, цвет: серый | C63: м | D63: 1.87 | E63: 0.18 | F63: 2.21 | G63: 170.47
A64: 100-0806-04 | B64: Кабель связи / коммуникационный SC-LOGICABLE LG MOD8LG04 негорючий, конструкция: 4 х 2 х 0,80 мм, оболочка: FRNC 8,7 мм, цвет: серый | C64: м | D64: 2.24 | E64: 0.18 | F64: 2.65 | G64: 204.41
A65: 100-0806-06 | B65: Кабель связи / коммуникационный SC-LOGICABLE LG MOD8LG06 негорючий, конструкция: 6 x 2 х 0,80 мм, оболочка: FRNC 10,1 мм, цвет: серый | C65: м | D65: 3.18 | E65: 0.18 | F65: 3.76 | G65: 290.02
A66: 100-0806-08 | B66: Кабель связи / коммуникационный SC-LOGICABLE LG MOD8LG08 негорючий, конструкция: 8 x 2 х 0,80 мм, оболочка: FRNC 10,2 мм, цвет: серый | C66: м | D66: 4.05 | E66: 0.18 | F66: 4.77 | G66: 367.93
A67: 100-0806-10 | B67: Кабель связи / коммуникационный SC-LOGICABLE LG MOD8LG10 негорючий, конструкция: 10 х 2 х 0,80 мм, оболочка: FRNC 13,1 мм, цвет: серый | C67: м | D67: 5.03 | E67: 0.18 | F67: 5.94 | G67: 458.18
A68: 100-0806-20 | B68: Кабель связи / коммуникационный SC-LOGICABLE LG MOD8LG20 негорючий, конструкция: 20 х 2 х 0,80 мм, оболочка: FRNC 15,6 мм, цвет: серый | C68: м | D68: 9.39 | E68: 0.18 | F68: 11.08 | G68: 854.65
A69: 100-0806-30 | B69: Кабель связи / коммуникационный SC-LOGICABLE LG MOD8LG30 негорючий, конструкция: 30 х 2 х 0,80 мм, оболочка: FRNC 19,4 мм, цвет: серый | C69: м | D69: 13.84 | E69: 0.18 | F69: 16.34 | G69: 1260.37
A70: 100-0806-40 | B70: Кабель связи / коммуникационный SC-LOGICABLE LG MOD8LG40 негорючий, конструкция: 40 х 2 х 0,80 мм, оболочка: FRNC 20,9 мм, цвет: серый | C70: м | D70: 18.16 | E70: 0.18 | F70: 21.44 | G70: 1653.76
A71: 100-0806-50 | B71: Кабель связи / коммуникационный SC-LOGICABLE LG MOD8LG50 негорючий, конструкция: 50 x 2 х 0,80 мм, оболочка: FRNC 23,7 мм, цвет: серый | C71: м | D71: 22.52 | E71: 0.18 | F71: 26.56 | G71: 2048.68
A72: 100-1156-01 | B72: Кабель цифровой многоканальный / модуляционный SC-LOGICABLE MP MODF01 негорючий, AES/EBU 110 Ом, конструкция: 1 х 2 х 0,57 мм, оболочка: FRNC / LSZH 5,5 мм, цвет: серый | C72: м | D72: 2.5 | E72: 0.18 | F72: 2.93 | G72: 226
A73: 100-1156-02 | B73: Кабель цифровой многоканальный / модуляционный SC-LOGICABLE MP MODF02 негорючий, AES/EBU 110 Ом, конструкция: 2 х 2 х 0,57 мм, оболочка: FRNC / LSZH 9,0 мм, цвет: серый | C73: м | D73: 5.02 | E73: 0.18 | F73: 5.93 | G73: 457.41
A74: 100-1156-03 | B74: Кабель цифровой многоканальный / модуляционный SC-LOGICABLE MP MODF03 негорючий, AES/EBU 110 Ом, конструкция: 3 х 2 х 0,57 мм, оболочка: FRNC / LSZH 9,2 мм, цвет: серый | C74: м | D74: 5.87 | E74: 0.18 | F74: 6.91 | G74: 533
A75: 100-1156-04 | B75: Кабель цифровой многоканальный / модуляционный SC-LOGICABLE MP MODF04 негорючий, AES/EBU 110 Ом, конструкция: 4 х 2 х 0,57 мм, оболочка: FRNC / LSZH 11,1 мм, цвет: серый | C75: м | D75: 7.02 | E75: 0.18 | F75: 8.28 | G75: 638.67
A76: 100-1156-06 | B76: Кабель цифровой многоканальный / модуляционный SC-LOGICABLE MP MODF06 негорючий, AES/EBU 110 Ом, конструкция: 6 x 2 х 0,57 мм, оболочка: FRNC / LSZH 12,4 мм, цвет: серый | C76: м | D76: 10.37 | E76: 0.18 | F76: 12.24 | G76: 944.12
A77: 100-1156-06C | B77: Кабель цифровой многоканальный / модуляционный SC-LOGICABLE MP MODF06 негорючий (CPR версия), AES/EBU 110 Ом, конструкция: 6 x 2 х 0,57 мм, оболочка: FRNC / LSZH 12,4 мм, цвет: серый | C77: м | D77: 10.43 | E77: 0.18 | F77: 12.33 | G77: 951.06
A78: 100-1156-08 | B78: Кабель цифровой многоканальный / модуляционный SC-LOGICABLE MP MODF08 негорючий, AES/EBU 110 Ом, конструкция: 8 x 2 х 0,57 мм, оболочка: FRNC / LSZH 14,0 мм, цвет: серый | C78: м | D78: 12.3 | E78: 0.18 | F78: 14.52 | G78: =ROUND(F78*$B$6*(1+0.02),2) -> 1119.99
A79: 100-1156-10 | B79: Кабель цифровой многоканальный / модуляционный SC-LOGICABLE MP MODF10 негорючий, AES/EBU 110 Ом, конструкция: 10 х 2 х 0,57 мм, оболочка: FRNC / LSZH 15,3 мм, цвет: серый | C79: м | D79: 15.8 | E79: 0.18 | F79: 18.65 | G79: 1438.55
A80: 100-1156-12 | B80: Кабель цифровой многоканальный / модуляционный SC-LOGICABLE MP MODF12 негорючий, AES/EBU 110 Ом, конструкция: 12 x 2 х 0,57 мм, оболочка: FRNC / LSZH 17,2 мм, цвет: серый | C80: м | D80: 19.3 | E80: 0.18 | F80: 22.78 | G80: 1757.12
A81: 100-1156-20 | B81: Кабель цифровой многоканальный / модуляционный SC-LOGICABLE MP MODF20 негорючий, AES/EBU 110 Ом, конструкция: 20 х 2 х 0,57 мм, оболочка: FRNC / LSZH 22,6 мм, цвет: серый | C81: м | D81: 28.15 | E81: 0.18 | F81: 33.22 | G81: 2562.4
A82: 100-1156-20C | B82: Кабель цифровой многоканальный / модуляционный SC-LOGICABLE MP MODF20 негорючий (CPR версия), AES/EBU 110 Ом, конструкция: 20 х 2 х 0,57 мм, оболочка: FRNC / LSZH 22,6 мм, цвет: серый | C82: м | D82: 28.39 | E82: 0.18 | F82: 33.52 | G82: 2585.54
A83: 100-1156-24 | B83: Кабель цифровой многоканальный / модуляционный SC-LOGICABLE MP MODF24 негорючий, AES/EBU 110 Ом, конструкция: 24 x 2 х 0,57 мм, оболочка: FRNC / LSZH 23,6 мм, цвет: серый | C83: м | D83: 33.7 | E83: 0.18 | F83: 39.76 | G83: 3066.85
A84: 100-1156-24C | B84: Кабель цифровой многоканальный / модуляционный SC-LOGICABLE MP MODF24 негорючий (CPR версия), AES/EBU 110 Ом, конструкция: 24 x 2 х 0,57 мм, оболочка: FRNC / LSZH 23,6 мм, цвет: серый | C84: м | D84: 34.02 | E84: 0.18 | F84: 40.15 | G84: 3096.94
A85: 100-1156-32 | B85: Кабель цифровой многоканальный / модуляционный SC-LOGICABLE MP MODF32 негорючий, AES/EBU 110 Ом, конструкция: 32 х 2 х 0,57 мм, оболочка: FRNC / LSZH 27,0 мм, цвет: серый | C85: м | D85: 42.37 | E85: 0.18 | F85: 50 | G85: 3856.71
A86: 100-1173-02 | B86: Кабель пожарной сигнализации LOGICABLE SAFETY BD MODFS02 негорючий Е90, конструкция: 2 х 2 х 0,80 мм, оболочка: HM2 7,7 мм, цвет: красный | C86: м | D86: 5.26 | E86: 0.18 | F86: 6.22 | G86: 479.77
A87: 100-1173-04 | B87: Кабель пожарной сигнализации LOGICABLE SAFETY BD MODFS04 негорючий Е90, конструкция: 4 х 2 х 0,80 мм, оболочка: HM2 11,6 мм, цвет: красный | C87: м | D87: 7.93 | E87: 0.18 | F87: 9.37 | G87: 722.75
A88: 100-1173-08 | B88: Кабель пожарной сигнализации LOGICABLE SAFETY BD MODFS08 негорючий Е90, конструкция: 8 x 2 х 0,80 мм, оболочка: HM2 17,9 мм, цвет: красный | C88: м | D88: 15 | E88: 0.18 | F88: 17.7 | G88: 1365.27
A89: 100-1173-12 | B89: Кабель пожарной сигнализации LOGICABLE SAFETY BD MODFS12 негорючий Е90, конструкция: 12 x 2 х 0,80 мм, оболочка: HM2 18,7 мм, цвет: красный | C89: м | D89: 22.39 | E89: 0.18 | F89: 26.43 | G89: 2038.66
A90: 200-0001 | B90: Кабель микрофонный SC-STAGE 22 HIGHFLEX, конструкция: 2 х 0,22 мм², оболочка: PVC 6,4 мм, цвет: черный | C90: м | D90: 1.57 | E90: 0.18 | F90: 1.83 | G90: 141.16
A91: 200-0001NE | B91: Кабель микрофонный SC-STAGE 22 HIGHFLEX без маркировки на оболочке, конструкция: 2 х 0,22 мм², оболочка: PVC 6,4 мм, цвет: черный | C91: м | D91: 1.57 | E91: 0.18 | F91: 1.83 | G91: 141.16
A92: 200-0002 | B92: Кабель микрофонный SC-STAGE 22 HIGHFLEX, конструкция: 2 х 0,22 мм², оболочка: PVC 6,4 мм, цвет: синий | C92: м | D92: 1.57 | E92: 0.18 | F92: 1.83 | G92: 141.16
A93: 200-0003 | B93: Кабель микрофонный SC-STAGE 22 HIGHFLEX, конструкция: 2 х 0,22 мм², оболочка: PVC 6,4 мм, цвет: красный | C93: м | D93: 1.57 | E93: 0.18 | F93: 1.83 | G93: 141.16
A94: 200-0004 | B94: Кабель микрофонный SC-STAGE 22 HIGHFLEX, конструкция: 2 х 0,22 мм², оболочка: PVC 6,4 мм, цвет: зеленый | C94: м | D94: 1.57 | E94: 0.18 | F94: 1.83 | G94: 141.16
A95: 200-0006 | B95: Кабель микрофонный SC-STAGE 22 HIGHFLEX, конструкция: 2 х 0,22 мм², оболочка: PVC 6,4 мм, цвет: серый | C95: м | D95: 1.57 | E95: 0.18 | F95: 1.83 | G95: 141.16
A96: 200-0007 | B96: Кабель микрофонный SC-STAGE 22 HIGHFLEX, конструкция: 2 х 0,22 мм², оболочка: PVC 6,4 мм, цвет: желтый | C96: м | D96: 1.57 | E96: 0.18 | F96: 1.83 | G96: 141.16
A97: 200-0008 | B97: Кабель микрофонный SC-STAGE 22 HIGHFLEX, конструкция: 2 х 0,22 мм², оболочка: PVC 6,4 мм, цвет: фиолетовый | C97: м | D97: 1.57 | E97: 0.18 | F97: 1.83 | G97: 141.16
A98: 200-0051 | B98: Кабель микрофонный SC-CLUB SERIES MKII, конструкция: 2 х 0,34 мм², оболочка: PVC 6,5 мм, цвет: черный | C98: м | D98: 1.78 | E98: 0.18 | F98: 2.09 | G98: 161.21
A99: 200-0051F | B99: Кабель микрофонный SC-CLUB SERIES MKII негорючий, конструкция: 2 х 0,34 мм², оболочка: FRNC 6,5 мм, цвет: черный | C99: м | D99: 2.41 | E99: 0.18 | F99: 2.85 | G99: 219.83
A100: 200-0051NE | B100: Кабель микрофонный SC-CLUB SERIES MKII без маркировки на оболочке, конструкция: 2 х 0,34 мм², оболочка: PVC 6,5 мм, цвет: черный | C100: м | D100: 1.78 | E100: 0.18 | F100: 2.09 | G100: 161.21
A101: 200-0051T | B101: Кабель микрофонный SC-TEMPOFLEX MICROPHONE негорючий жаростойкий (до 130° C), конструкция: 2 х 0,34 мм², оболочка: TPE 7,3 мм, цвет: черный | C101: м | D101: 5.2 | E101: 0.18 | F101: 6.13 | G101: 472.83
A102: 200-0052 | B102: Кабель микрофонный SC-CLUB SERIES MKII, конструкция: 2 х 0,34 мм², оболочка: PVC 6,5 мм, цвет: синий | C102: м | D102: 1.78 | E102: 0.18 | F102: 2.09 | G102: 161.21
A103: 200-0053 | B103: Кабель микрофонный SC-CLUB SERIES MKII, конструкция: 2 х 0,34 мм², оболочка: PVC 6,5 мм, цвет: красный | C103: м | D103: 1.78 | E103: 0.18 | F103: 2.09 | G103: 161.21
A104: 200-0057V | B104: Кабель микрофонный SC-CLUB SERIES MKII винтажный, конструкция: 2 х 0,34 мм², оболочка: PVC + текстильная оплетка 6,5 мм, цвет: желтый / коричневый | C104: м | D104: 2.85 | E104: 0.18 | F104: 3.37 | G104: 259.94
A105: 200-008M | B105: Кабель микрофонный SC-CAPTAIN FLEXIBLE, конструкция: 2 х 0,22 мм², оболочка: PVC 6,5 мм, цвет: темно-зеленый (оливковый) | C105: м | D105: 1.83 | E105: 0.18 | F105: 2.15 | G105: 165.84
A106: 200-0101 | B106: Кабель микрофонный SC-SOURCE MKII HIGHFLEX, конструкция: 2 х 0,25 мм², оболочка: PVC 6,5 мм, цвет: черный | C106: м | D106: 2.37 | E106: 0.18 | F106: 2.8 | G106: 215.98
A107: 200-0101F | B107: Кабель микрофонный SC-SOURCE MKII HIGHFLEX негорючий, конструкция: 2 х 0,25 мм², оболочка: FRNC 6,5 мм, цвет: черный | C107: м | D107: 3.13 | E107: 0.18 | F107: 3.7 | G107: 285.4
A108: 200-0102 | B108: Кабель микрофонный SC-SOURCE MKII HIGHFLEX, конструкция: 2 х 0,25 мм², оболочка: PVC 6,5 мм, цвет: синий | C108: м | D108: 2.37 | E108: 0.18 | F108: 2.8 | G108: 215.98
A109: 200-0103 | B109: Кабель микрофонный SC-SOURCE MKII HIGHFLEX, конструкция: 2 х 0,25 мм², оболочка: PVC 6,5 мм, цвет: красный | C109: м | D109: 2.37 | E109: 0.18 | F109: 2.8 | G109: 215.98
A110: 200-0140AQ | B110: Кабель микрофонный цифровой, водонепроницаемый SC-AQUA MARINEX MIKRO без галогенов, AES/EBU 110 Ом, конструкция: 2 х 0,14 мм², оболочка: PUR-SR 4,6 мм, цвет: белый | C110: м | D110: 3.96 | E110: 0.18 | F110: 4.67 | G110: 360.22
A111: 200-0141AQ | B111: Кабель микрофонный цифровой, водонепроницаемый SC-AQUA MARINEX MIKRO без галогенов, AES/EBU 110 Ом, конструкция: 2 х 0,14 мм², оболочка: PUR-SR 4,6 мм, цвет: черный | C111: м | D111: 3.96 | E111: 0.18 | F111: 4.67 | G111: 360.22
A112: 200-0151 | B112: Кабель микрофонный SC-PRIMUS, конструкция: 2 х 0,50 мм², оболочка: PVC 6,7 мм, цвет: черный | C112: м | D112: 2.54 | E112: 0.18 | F112: 3.02 | G112: 232.95
A113: 200-0151F | B113: Кабель микрофонный SC-PRIMUS FRNC негорючий, конструкция: 2 х 0,50 мм², оболочка: FRNC 6,5 мм, цвет: черный | C113: м | D113: 2.85 | E113: 0.18 | F113: 3.35 | G113: 258.4
A114: 200-0152 | B114: Кабель микрофонный SC-PRIMUS, конструкция: 2 х 0,50 мм², оболочка: PVC 6,7 мм, цвет: синий | C114: м | D114: 2.54 | E114: 0.18 | F114: 3.02 | G114: 232.95
A115: 200-0186 | B115: Кабель для ламповых микрофонов SC-OCTAVE TUBE 7-и жильный, конструкция: 5x0,14 мм²(Аудио)+2x0,50 мм²(Управление), оболочка: PVC 6,5 мм, цвет: серый | C115: м | D115: 4.93 | E115: 0.18 | F115: 5.83 | G115: 449.69
A116: 200-0241AQ | B116: Кабель микрофонный цифровой, водонепроницаемый SC-AQUA MARINEX MIKRO 25 без галогенов, AES/EBU 110 Ом, конструкция: 2 х 0,25 мм², оболочка: PUR-SR 7,2 мм, цвет: черный | C116: м | D116: 9.46 | E116: 0.18 | F116: 11.17 | G116: 861.59
A117: 200-0251 | B117: Кабель микрофонный SC-GALILEO 238, конструкция: 2 х 0,38 мм², оболочка: PVC 7,0 мм, цвет: черный | C117: м | D117: 3.37 | E117: 0.18 | F117: 3.98 | G117: 306.99
A118: 200-0271 | B118: Кабель микрофонный SC-GALILEO 238 Plus, конструкция: 2 х 0,38 мм², оболочка: PVC 7,0 мм, цвет: черный | C118: м | D118: 3.61 | E118: 0.18 | F118: 4.26 | G118: 328.59
A119: 200-0281 | B119: Кабель микрофонный цифровой SC-CARBOKAB 225 AES/EBU 110 Ом, конструкция: 2 х 0,25 мм², оболочка: S-PVC 7,6 мм, цвет: черный | C119: м | D119: 8.17 | E119: 0.18 | F119: 9.65 | G119: 744.34
A120: 200-0301 | B120: Кабель микрофонный SC-SQUARE 4-CORE MKII HIGHFLEX перекрестный, конструкция: 4 х 0,20 мм², оболочка: PVC 6,5 мм, цвет: черный | C120: м | D120: 2.8 | E120: 0.18 | F120: 3.3 | G120: 254.54
A121: 200-0301NE | B121: Кабель микрофонный SC-SQUARE 4-CORE MKII HIGHFLEX перекрестный без маркировки на оболочке, конструкция: 4 х 0,20 мм², оболочка: PVC 6,5 мм, цвет: черный | C121: м | D121: 2.8 | E121: 0.18 | F121: 3.3 | G121: 254.54
A122: 200-0311 | B122: Кабель микрофонный / патч-корд SC-SCUBA 14 HIGHFLEX, конструкция: 2 х 0,14 мм², оболочка: PVC 3,8 мм, цвет: черный | C122: м | D122: 1.33 | E122: 0.18 | F122: 1.57 | G122: 121.1
A123: 200-0313 | B123: Кабель микрофонный / патч-корд SC-SCUBA 14 HIGHFLEX, конструкция: 2 х 0,14 мм², оболочка: PVC 3,8 мм, цвет: красный | C123: м | D123: 1.33 | E123: 0.18 | F123: 1.57 | G123: 121.1
A124: 200-0314 | B124: Кабель микрофонный / патч-корд SC-SCUBA 14 HIGHFLEX, конструкция: 2 х 0,14 мм², оболочка: PVC 3,8 мм, цвет: зеленый | C124: м | D124: 1.33 | E124: 0.18 | F124: 1.57 | G124: 121.1
A125: 200-0316 | B125: Кабель микрофонный / патч-корд SC-SCUBA 14 HIGHFLEX, конструкция: 2 х 0,14 мм², оболочка: PVC 3,8 мм, цвет: серый | C125: м | D125: 1.33 | E125: 0.18 | F125: 1.57 | G125: 121.1
A126: 200-0317 | B126: Кабель микрофонный / патч-корд SC-SCUBA 14 HIGHFLEX, конструкция: 2 х 0,14 мм², оболочка: PVC 3,8 мм, цвет: желтый | C126: м | D126: 1.33 | E126: 0.18 | F126: 1.57 | G126: 121.1
A127: 200-0350 | B127: Кабель микрофонный / патч-корд SC-GOBLIN, конструкция: 2 х 0,14 мм², оболочка: PVC 4,6 мм, цвет: белый | C127: м | D127: 1.57 | E127: 0.18 | F127: 1.85 | G127: 142.7
A128: 200-0351 | B128: Кабель микрофонный / патч-корд SC-GOBLIN, конструкция: 2 х 0,14 мм², оболочка: PVC 4,6 мм, цвет: черный | C128: м | D128: 1.57 | E128: 0.18 | F128: 1.85 | G128: 142.7
A129: 200-0352 | B129: Кабель микрофонный / патч-корд SC-GOBLIN, конструкция: 2 х 0,14 мм², оболочка: PVC 4,6 мм, цвет: синий | C129: м | D129: 1.57 | E129: 0.18 | F129: 1.85 | G129: 142.7
A130: 200-0353 | B130: Кабель микрофонный / патч-корд SC-GOBLIN, конструкция: 2 х 0,14 мм², оболочка: PVC 4,6 мм, цвет: красный | C130: м | D130: 1.57 | E130: 0.18 | F130: 1.85 | G130: 142.7
A131: 200-0356 | B131: Кабель микрофонный / патч-корд SC-GOBLIN, конструкция: 2 х 0,14 мм², оболочка: PVC 4,6 мм, цвет: серый | C131: м | D131: 1.57 | E131: 0.18 | F131: 1.85 | G131: 142.7
A132: 200-0371 | B132: Кабель микрофонный SC-MICRO-STAGE AES/EBU 110 Ом, конструкция: 2 х 0,14 мм², оболочка: PVC 5,8 мм, цвет: черный | C132: м | D132: 1.57 | E132: 0.18 | F132: 1.85 | G132: 142.7
A133: 200-0372 | B133: Кабель микрофонный SC-MICRO-STAGE AES/EBU 110 Ом, конструкция: 2 х 0,14 мм², оболочка: PVC 5,8 мм, цвет: синий | C133: м | D133: 1.57 | E133: 0.18 | F133: 1.85 | G133: 142.7
A134: 200-0400 | B134: Кабель патч-корд балансный SC-ISOPOD SO-F22, конструкция: 2 х 0,22 мм², оболочка: PVC 3,3 мм, цвет: белый | C134: м | D134: 1 | E134: 0.18 | F134: 1.2 | G134: 92.56
A135: 200-0401 | B135: Кабель патч-корд балансный SC-ISOPOD SO-F22, конструкция: 2 х 0,22 мм², оболочка: PVC 3,3 мм, цвет: черный | C135: м | D135: 1 | E135: 0.18 | F135: 1.2 | G135: 92.56
A136: 200-0401F | B136: Кабель патч-корд балансный SC-ISOPOD SO-F22F негорючий, конструкция: 2 х 0,22 мм², оболочка: FRNC 3,3 мм, цвет: черный | C136: м | D136: 1.28 | E136: 0.18 | F136: 1.52 | G136: 117.24
A137: 200-0402 | B137: Кабель патч-корд балансный SC-ISOPOD SO-F22, конструкция: 2 х 0,22 мм², оболочка: PVC 3,3 мм, цвет: синий | C137: м | D137: 1 | E137: 0.18 | F137: 1.2 | G137: 92.56
A138: 200-0403 | B138: Кабель патч-корд балансный SC-ISOPOD SO-F22, конструкция: 2 х 0,22 мм², оболочка: PVC 3,3 мм, цвет: красный | C138: м | D138: 1 | E138: 0.18 | F138: 1.2 | G138: 92.56
A139: 200-0404 | B139: Кабель патч-корд балансный SC-ISOPOD SO-F22, конструкция: 2 х 0,22 мм², оболочка: PVC 3,3 мм, цвет: зеленый | C139: м | D139: 1 | E139: 0.18 | F139: 1.2 | G139: 92.56
A140: 200-0405 | B140: Кабель патч-корд балансный SC-ISOPOD SO-F22, конструкция: 2 х 0,22 мм², оболочка: PVC 3,3 мм, цвет: оранжевый | C140: м | D140: 1 | E140: 0.18 | F140: 1.2 | G140: 92.56
A141: 200-0406 | B141: Кабель патч-корд балансный SC-ISOPOD SO-F22, конструкция: 2 х 0,22 мм², оболочка: PVC 3,3 мм, цвет: серый | C141: м | D141: 1 | E141: 0.18 | F141: 1.2 | G141: 92.56
A142: 200-0407 | B142: Кабель патч-корд балансный SC-ISOPOD SO-F22, конструкция: 2 х 0,22 мм², оболочка: PVC 3,3 мм, цвет: желтый | C142: м | D142: 1 | E142: 0.18 | F142: 1.2 | G142: =ROUND(F142*$B$6*(1+0.02),2) -> 92.56
A143: 200-0408 | B143: Кабель патч-корд балансный SC-ISOPOD SO-F22, конструкция: 2 х 0,22 мм², оболочка: PVC 3,3 мм, цвет: фиолетовый | C143: м | D143: 1 | E143: 0.18 | F143: 1.2 | G143: 92.56
A144: 200-0451 | B144: Кабель микрофонный / патч-корд SC-CICADA SO-D14, конструкция: 2 х 0,14 мм², оболочка: PUR 2,6 мм, цвет: черный | C144: м | D144: 1.39 | E144: 0.18 | F144: 1.63 | G144: 125.73
A145: 200-0461 | B145: Кабель микрофонный / патч-корд SC-CICADA 4, конструкция: 4 х 0,42 мм, оболочка: PUR 3,4 мм, цвет: черный | C145: м | D145: 1.59 | E145: 0.18 | F145: 1.87 | G145: 144.24
A146: 200-0551 | B146: Кабель микрофонный цифровой SC-PEACOCK MKII двупарный AES/EBU 110 Ом, конструкция: 2 х 2 х 0,22 мм², оболочка: S-PVC 4,5 x 9,2 мм, цвет: черный | C146: м | D146: 3.59 | E146: 0.18 | F146: 4.24 | G146: 327.05
A147: 200-0552 | B147: Кабель микрофонный цифровой SC-PEACOCK MKII двупарный AES/EBU 110 Ом, конструкция: 2 х 2 х 0,22 мм², оболочка: S-PVC 4,5 x 9,2 мм, цвет: синий | C147: м | D147: 3.59 | E147: 0.18 | F147: 4.24 | G147: 327.05
A148: 200-0601 | B148: Кабель микрофонный SC-SYMBIOTIC, конструкция: 2 х 0,20 мм², оболочка: PVC 5,2 мм, цвет: черный | C148: м | D148: 2.59 | E148: 0.18 | F148: 3.04 | G148: 234.49
A149: 200-0601H3 | B149: Кабель микрофонный SC-SYMBIOTIC 3 3-х жильный, конструкция: 3 х 0,20 мм², оболочка: TPE 5,2 мм, цвет: черный | C149: м | D149: 3.37 | E149: 0.18 | F149: 3.98 | G149: 306.99
A150: 200-0711 | B150: Кабель микрофонный SC-CLUB BLACK ZILK AES/EBU 110 Ом, конструкция: 2 х 0,25 мм², оболочка: S-PVC 7,3 мм, цвет: черный матовый полупрозрачный | C150: м | D150: 2.91 | E150: 0.18 | F150: 3.43 | G150: 264.57
A151: 200-0713 | B151: Кабель микрофонный SC-CLUB RED ZILK AES/EBU 110 Ом, конструкция: 2 х 0,25 мм², оболочка: S-PVC 7,3 мм, цвет: бордовый | C151: м | D151: 2.91 | E151: 0.18 | F151: 3.43 | G151: 264.57
A152: 201-0101 | B152: Кабель микрофонный SC-SOURCE MKII HIGHFLEX, конструкция: 2 х 0,25 мм², оболочка: PUR 6,5 мм, цвет: черный | C152: м | D152: 3.61 | E152: 0.18 | F152: 4.26 | G152: 328.59
A153: 201-0406 | B153: Кабель патч-корд балансный SC-ISOPOD SO-F50, конструкция: 2 х 0,50 мм², оболочка: PVC 4,2 мм, цвет: серый | C153: м | D153: 1.48 | E153: 0.18 | F153: 1.74 | G153: 134.21
A154: 300-0021 | B154: Кабель инструментальный SC-TRICONE MKII, конструкция: 1 х 0,22 мм², оболочка: PVC 5,9 мм, цвет: черный | C154: м | D154: 1.41 | E154: 0.18 | F154: 1.65 | G154: 127.27
A155: 300-0021NE | B155: Кабель инструментальный SC-TRICONE MKII без маркировки на оболочке, конструкция: 1 х 0,22 мм², оболочка: PVC 5,9 мм, цвет: черный | C155: м | D155: 1.41 | E155: 0.18 | F155: 1.65 | G155: 127.27
A156: 300-0022 | B156: Кабель инструментальный SC-TRICONE MKII, конструкция: 1 х 0,22 мм², оболочка: PVC 5,9 мм, цвет: синий | C156: м | D156: 1.41 | E156: 0.18 | F156: 1.65 | G156: 127.27
A157: 300-0023 | B157: Кабель инструментальный SC-TRICONE MKII, конструкция: 1 х 0,22 мм², оболочка: PVC 5,9 мм, цвет: красный | C157: м | D157: 1.41 | E157: 0.18 | F157: 1.65 | G157: 127.27
A158: 300-0024 | B158: Кабель инструментальный SC-TRICONE MKII, конструкция: 1 х 0,22 мм², оболочка: PVC 5,9 мм, цвет: зеленый | C158: м | D158: 1.41 | E158: 0.18 | F158: 1.65 | G158: 127.27
A159: 300-0031 | B159: Кабель инструментальный / патч-корд SC-ONYX TYNEE, конструкция: 1 х 0,22 мм², оболочка: PVC 4,0 мм, цвет: черный | C159: м | D159: 0.93 | E159: 0.18 | F159: 1.09 | G159: 84.08
A160: 300-0051 | B160: Кабель инструментальный SC-SPIRIT, конструкция: 1 х 0,50 мм², оболочка: PVC 7,0 мм, цвет: черный | C160: м | D160: 2.91 | E160: 0.18 | F160: 3.43 | G160: 264.57
A161: 300-0071 | B161: Кабель инструментальный SC-SPIRIT XXL, конструкция: 1 х 0,75 мм², оболочка: PVC 6,8 мм, цвет: коричневый / прозрачный | C161: м | D161: 3.17 | E161: 0.18 | F161: 3.74 | G161: 288.48
A162: 300-008M | B162: Кабель инструментальный SC-COLONEL INCREDIBLE 2-х жильный HIGH END, конструкция: 2 х 0,35 мм², оболочка: PVC 7,2 мм, цвет: темно-зеленый (оливковый) | C162: м | D162: 3.5 | E162: 0.18 | F162: 4.13 | G162: 318.56
A163: 300-0091 | B163: Кабель инструментальный SC-SPIRIT LLX "LOW LOSS", конструкция: 1 х 0,38 мм², оболочка: PVC 7,5 мм, цвет: черный | C163: м | D163: 3.83 | E163: 0.18 | F163: 4.5 | G163: 347.1
A164: 300-0110 | B164: Кабель инструментальный SC-CLASSIQUE, конструкция: 1 х 0,50 мм², оболочка: PVC + текстильная оплетка 6,5 мм, цвет: черный/белый | C164: м | D164: 3.46 | E164: 0.18 | F164: 4.07 | G164: 313.94
A165: 300-0112 | B165: Кабель инструментальный SC-CLASSIQUE, конструкция: 1 х 0,50 мм², оболочка: PVC + текстильная оплетка 6,5 мм, цвет: черный/синий | C165: м | D165: 3.46 | E165: 0.18 | F165: 4.07 | G165: 313.94
A166: 300-0117 | B166: Кабель инструментальный SC-CLASSIQUE, конструкция: 1 х 0,50 мм², оболочка: PVC + текстильная оплетка 6,5 мм, цвет: желтый / коричневый | C166: м | D166: 3.46 | E166: 0.18 | F166: 4.07 | G166: 313.94
A167: 300-0270 | B167: Кабель инструментальный SC-TRICONE XXL, конструкция: 1 х 0,50 мм², оболочка: LLC (Long Life Compound) 5,9 мм, цвет: белый | C167: м | D167: 2 | E167: 0.18 | F167: 2.37 | G167: 182.81
A168: 300-0271 | B168: Кабель инструментальный SC-TRICONE XXL, конструкция: 1 х 0,50 мм², оболочка: LLC (Long Life Compound) 5,9 мм, цвет: черный | C168: м | D168: 2 | E168: 0.18 | F168: 2.37 | G168: 182.81
A169: 300-0272 | B169: Кабель инструментальный SC-TRICONE XXL, конструкция: 1 х 0,50 мм², оболочка: LLC (Long Life Compound) 5,9 мм, цвет: синий | C169: м | D169: 2 | E169: 0.18 | F169: 2.37 | G169: 182.81
A170: 300-0273 | B170: Кабель инструментальный SC-TRICONE XXL, конструкция: 1 х 0,50 мм², оболочка: LLC (Long Life Compound) 5,9 мм, цвет: красный | C170: м | D170: 2 | E170: 0.18 | F170: 2.37 | G170: 182.81
A171: 300-0351 | B171: Кабель инструментальный SC-SPIRIT BLACK ZILK, конструкция: 1 х 0,25 мм², оболочка: PVC 7,2 мм, цвет: черный матовый полупрозрачный | C171: м | D171: 2.96 | E171: 0.18 | F171: 3.5 | G171: 269.97
A172: 301-1101 | B172: Кабель комбинированный SC-TRICONE SYMASYM, конструкция: 1х(1х0,22 мм²)(Инстр.) + 1х(2х0,14 мм²) (Микроф.), оболочка: PVC 11,5 мм, цвет: черный | C172: м | D172: 8.15 | E172: 0.18 | F172: 9.63 | G172: 742.8
A173: 301-2413 | B173: Кабель комбинированный SC-TRICONE 241P, конструкция: 4х(1х0,22мм²) (Инстр.) + 2х(2х0,14мм²) (Аудио) + 1х(4х2х0,14мм²) (CAT.5e) + 1х(3х0,75мм²) (Питание), оболочка: PVC 21,8 мм, цвет: черный | C173: м | D173: 28.15 | E173: 0.18 | F173: 33.22 | G173: 2562.4
A174: 320-0061 | B174: Кабель инструментальный / патч-корд SC-ONYX 2008 2-х жильный, конструкция: 2 x 1 х 0,08 мм², оболочка: PVC 2,6 x 5,9 мм, цвет: черный | C174: м | D174: 1.35 | E174: 0.18 | F174: 1.61 | G174: 124.19
A175: 320-0101 | B175: Кабель инструментальный / патч-корд SC-ONYX 2025 2-х жильный, конструкция: 2 x 1 х 0,25 мм², оболочка: PVC 3,8 x 8,3 мм, цвет: черный | C175: м | D175: 2.26 | E175: 0.18 | F175: 2.65 | G175: 204.41
A176: 320-0102 | B176: Кабель инструментальный / патч-корд SC-ONYX 2025 2-х жильный, конструкция: 2 x 1 х 0,08 мм², оболочка: PVC 3,8 x 8,3 мм, цвет: синий | C176: м | D176: 2.26 | E176: 0.18 | F176: 2.65 | G176: 204.41
A177: 320-0252 | B177: Кабель инструментальный SC-SINUS CONTROL с дополнительным проводом управления, конструкция: 2х1х0,35 мм² (Инстр. коакс.) + 1х0,35 мм² (Управл.), оболочка: S-PVC 4,5 x 9,2 мм, цвет: синий | C177: м | D177: 3.52 | E177: 0.18 | F177: 4.15 | G177: 320.11
A178: 380-0056-02014 | B178: Кабель управления SC-CONTROL FLEX негорючий, конструкция: 2 х 0,14 мм², оболочка: PVC 3,8 мм, цвет: серый | C178: м | D178: 0.84 | E178: 0.18 | F178: 1 | G178: 77.13
A179: 380-0056-02025 | B179: Кабель управления SC-CONTROL FLEX негорючий, конструкция: 2 х 0,25 мм², оболочка: PVC 4,2 мм, цвет: серый | C179: м | D179: 0.97 | E179: 0.18 | F179: 1.13 | G179: 87.16
A180: 380-0056-02034 | B180: Кабель управления SC-CONTROL FLEX негорючий, конструкция: 2 х 0,34 мм², оболочка: PVC 4,6 мм, цвет: серый | C180: м | D180: 1.1 | E180: 0.18 | F180: 1.31 | G180: 101.05
A181: 380-0056-02050 | B181: Кабель управления SC-CONTROL FLEX негорючий, конструкция: 2 х 0,50 мм², оболочка: PVC 5,5 мм, цвет: серый | C181: м | D181: 1.47 | E181: 0.18 | F181: 1.73 | G181: 133.44
A182: 380-0056-02075 | B182: Кабель управления SC-CONTROL FLEX негорючий, конструкция: 2 х 0,75 мм², оболочка: PVC 6,1 мм, цвет: серый | C182: м | D182: 1.71 | E182: 0.18 | F182: 2.02 | G182: 155.81
A183: 380-0056-03014 | B183: Кабель управления SC-CONTROL FLEX негорючий, конструкция: 3 х 0,14 мм², оболочка: PVC 4,0 мм, цвет: серый | C183: м | D183: 0.95 | E183: 0.18 | F183: 1.11 | G183: 85.62
A184: 380-0056-03025 | B184: Кабель управления SC-CONTROL FLEX негорючий, конструкция: 3 х 0,25 мм², оболочка: PVC 4,4 мм, цвет: серый | C184: м | D184: 1.18 | E184: 0.18 | F184: 1.39 | G184: 107.22
A185: 380-0056-03034 | B185: Кабель управления SC-CONTROL FLEX негорючий, конструкция: 3 х 0,34 мм², оболочка: PVC 4,9 мм, цвет: серый | C185: м | D185: 1.39 | E185: 0.18 | F185: 1.65 | G185: 127.27
A186: 380-0056-03050 | B186: Кабель управления SC-CONTROL FLEX негорючий, конструкция: 3 х 0,50 мм², оболочка: PVC 5,8 мм, цвет: серый | C186: м | D186: 1.34 | E186: 0.18 | F186: 1.58 | G186: 121.87
A187: 380-0056-03075 | B187: Кабель управления SC-CONTROL FLEX негорючий, конструкция: 3 х 0,75 мм², оболочка: PVC 6,5 мм, цвет: серый | C187: м | D187: 2.29 | E187: 0.18 | F187: 2.71 | G187: 209.03
A188: 380-0056-04014 | B188: Кабель управления SC-CONTROL FLEX негорючий, конструкция: 4 х 0,14 мм², оболочка: PVC 4,2 мм, цвет: серый | C188: м | D188: 1.13 | E188: 0.18 | F188: 1.32 | G188: 101.82
A189: 380-0056-04025 | B189: Кабель управления SC-CONTROL FLEX негорючий, конструкция: 4 х 0,25 мм², оболочка: PVC 4,7 мм, цвет: серый | C189: м | D189: 1.4 | E189: 0.18 | F189: 1.65 | G189: 127.27
A190: 380-0056-04034 | B190: Кабель управления SC-CONTROL FLEX негорючий, конструкция: 4 х 0,34 мм², оболочка: PVC 5,5 мм, цвет: серый | C190: м | D190: 1.58 | E190: 0.18 | F190: 1.87 | G190: 144.24
A191: 380-0056-04050 | B191: Кабель управления SC-CONTROL FLEX негорючий, конструкция: 4 х 0,50 мм², оболочка: PVC 6,3 мм, цвет: серый | C191: м | D191: 2.18 | E191: 0.18 | F191: 2.56 | G191: 197.46
A192: 380-0056-04075 | B192: Кабель управления SC-CONTROL FLEX негорючий, конструкция: 4 х 0,75 мм², оболочка: PVC 7,0 мм, цвет: серый | C192: м | D192: 2.74 | E192: 0.18 | F192: 3.23 | G192: 249.14
A193: 380-0056-05014 | B193: Кабель управления SC-CONTROL FLEX негорючий, конструкция: 5 х 0,14 мм², оболочка: PVC 4,5 мм, цвет: серый | C193: м | D193: 1.23 | E193: 0.18 | F193: 1.44 | G193: 111.07
A194: 380-0056-05025 | B194: Кабель управления SC-CONTROL FLEX негорючий, конструкция: 5 х 0,25 мм², оболочка: PVC 5,4 мм, цвет: серый | C194: м | D194: 1.52 | E194: 0.18 | F194: 1.79 | G194: 138.07
A195: 380-0056-05034 | B195: Кабель управления SC-CONTROL FLEX негорючий, конструкция: 5 х 0,34 мм², оболочка: PVC 5,9 мм, цвет: серый | C195: м | D195: 1.89 | E195: 0.18 | F195: 2.23 | G195: 172.01
A196: 380-0056-05050 | B196: Кабель управления SC-CONTROL FLEX негорючий, конструкция: 5 х 0,50 мм², оболочка: PVC 6,7 мм, цвет: серый | C196: м | D196: 2.66 | E196: 0.18 | F196: 3.15 | G196: 242.97
A197: 380-0056-05075 | B197: Кабель управления SC-CONTROL FLEX негорючий, конструкция: 5 х 0,75 мм², оболочка: PVC 7,5 мм, цвет: серый | C197: м | D197: 2.65 | E197: 0.18 | F197: 3.13 | G197: 241.43
A198: 380-0056-06014 | B198: Кабель управления SC-CONTROL FLEX негорючий, конструкция: 6 х 0,14 мм², оболочка: PVC 4,8 мм, цвет: серый | C198: м | D198: 1.37 | E198: 0.18 | F198: 1.61 | G198: 124.19
A199: 380-0056-06025 | B199: Кабель управления SC-CONTROL FLEX негорючий, конструкция: 6 х 0,25 мм², оболочка: PVC 5,7 мм, цвет: серый | C199: м | D199: 1.82 | E199: 0.18 | F199: 2.15 | G199: 165.84
A200: 380-0056-06034 | B200: Кабель управления SC-CONTROL FLEX негорючий, конструкция: 6 х 0,34 мм², оболочка: PVC 6,3 мм, цвет: серый | C200: м | D200: 2.24 | E200: 0.18 | F200: 2.65 | G200: 204.41
A201: 380-0056-06050 | B201: Кабель управления SC-CONTROL FLEX негорючий, конструкция: 6 х 0,50 мм², оболочка: PVC (пламяподавляющая) 7,2 мм, цвет: серый | C201: м | D201: 3.1 | E201: 0.18 | F201: 3.66 | G201: 282.31
A202: 380-0056-06075 | B202: Кабель управления SC-CONTROL FLEX негорючий, конструкция: 6 х 0,75 мм², оболочка: PVC 8,1 мм, цвет: серый | C202: м | D202: 4.21 | E202: 0.18 | F202: 4.97 | G202: 383.36
A203: 380-0056-07014 | B203: Кабель управления SC-CONTROL FLEX негорючий, конструкция: 7 х 0,14 мм², оболочка: PVC 4,8 мм, цвет: серый | C203: м | D203: 1.55 | E203: 0.18 | F203: 1.82 | G203: 140.38
A204: 380-0056-07025 | B204: Кабель управления SC-CONTROL FLEX негорючий, конструкция: 7 х 0,25 мм², оболочка: PVC 5,7 мм, цвет: серый | C204: м | D204: 1.94 | E204: 0.18 | F204: 2.29 | G204: 176.64
... 917 more rows
